[Event "Djerba Festival Blitz 2025"]
[Site "Djerba"]
[Date "2025.02.21"]
[Round "9.13"]
[White "Boulrens, Ala Eddine"]
[Black "Zenaidi, Sadok"]
[Result "1-0"]
[Annotator "NA"]
[ECO "B13"]
[WhiteElo "2121"]
[BlackElo "1872"]
[PlyCount "73"]
[EventDate "2025.02.15"]
[EventType "swiss"]
[EventCountry "TUN"]
[SourceTitle "playchess.com"]
[Source "ChessBase"]
[SourceQuality "1"]
[TimeControl "180+3"]

1. e4 {[%emt 0:00:02]} c6 {[%emt 0:03:06]} 2. d4 {[%emt 0:00:05]} d5 {[%emt 0:00:00]} 3. exd5 {[%emt 0:00:01]} cxd5 {[%emt 0:00:00]} 4. c4 {[%emt 0:00:02]} Nf6 {[%emt 0:00:09]} 5. Nc3 Nc6 {[%emt 0:00:00]} 6. h3 {[%emt 0:00:04]} e6 {[%emt 0:00:00]} 7. Nf3 {[%emt 0:00:02]} Be7 {[%emt 0:00:00]} 8. Bf4 {[%emt 0:00:02]} a6 {[%emt 0:00:00]} 9. a3 {[%emt 0:00:07]} O-O {[%emt 0:00:00]} 10. c5 {[%emt 0:00:03]} Ne4 {[%emt 0:00:00]} 11. Qc2 {[%emt 0:00:09]} f5 {[%emt 0:00:00]} 12. Be2 {[%emt 0:00:09]} Bf6 {[%emt 0:00:00]} 13. Rd1 {[%emt 0:00:02]} Kh8 {[%emt 0:00:00]} 14. O-O {[%emt 0:00:14]} Rg8 {[%emt 0:00:00]} 15. Be5 {[%emt 0:00:07]} Bxe5 {[%emt 0:00:00]} 16. Nxe5 {[%emt 0:00:04]} Nxe5 {[%emt 0:00:00]} 17. dxe5 {[%emt 0:02:41]} Qe7 18. Nxe4 {[%emt 0:00:00]} fxe4 {[%emt 0:00:00]} 19. f3 {[%emt 0:00:00]} exf3 {[%emt 0:00:00]} 20. Rxf3 {[%emt 0:00:00]} Bd7 {[%emt 0:00:00]} 21. Rdf1 {[%emt 0:00:00]} Rgf8 {[%emt 0:00:00]} 22. Bd3 {[%emt 0:00:00]} h6 {[%emt 0:00:00]} 23. b4 {[%emt 0:00:00]} Rxf3 {[%emt 0:00:00]} 24. Rxf3 {[%emt 0:00:00]} Rf8 {[%emt 0:00:00]} 25. Qe2 {[%emt 0:00:00]} Rxf3 26. Qxf3 {[%emt 0:00:00]} Be8 {[%emt 0:00:27]} 27. Kh1 {[%emt 0:00:00]} g6 {[%emt 0:00:04]} 28. Qf4 {[%emt 0:00:00]} Kg7 {[%emt 0:00:03]} 29. Kh2 {[%emt 0:00:00]} Bc6 {[%emt 0:00:09]} 30. h4 {[%emt 0:00:00]} h5 {[%emt 0:00:08]} 31. Qg3 {[%emt 0:00:00]} Qf7 {[%emt 0:00:04]} 32. Qg5 {[%emt 0:00:00]} Be8 {[%emt 0:00:05]} 33. Kg3 {[%emt 0:00:00]} Kh7 {[%emt 0:00:09]} 34. Qxh5+ {[%emt 0:00:00]} Kg7 {[%emt 0:00:07]} 35. Qg5 {[%emt 0:00:00]} Qc7 {[%emt 0:00:11]} 36. h5 {[%emt 0:00:00]} b6 {[%emt 0:00:05]} 37. Bxg6 {[%emt 0:00:00]} 1-0

[Event "Djerba Festival Blitz 2025"]
[Site "Djerba"]
[Date "2025.02.21"]
[Round "9.14"]
[White "Ajbara Jamal"]
[Black "Kakavand, Ramtin"]
[Result "1-0"]
[Annotator "NA"]
[ECO "D66"]
[WhiteElo "1898"]
[BlackElo "2106"]
[PlyCount "66"]
[EventDate "2025.02.15"]
[EventType "swiss"]
[EventCountry "TUN"]
[SourceTitle "playchess.com"]
[Source "ChessBase"]
[SourceQuality "1"]
[TimeControl "180+3"]

1. d4 {[%emt 0:00:05]} d5 {[%emt 0:00:03]} 2. Nf3 {[%emt 0:00:02]} Nf6 {[%emt 0:00:02]} 3. c4 {[%emt 0:00:03]} c6 {[%emt 0:00:03]} 4. Nc3 {[%emt 0:00:03]} e6 {[%emt 0:00:03]} 5. Bg5 {[%emt 0:00:13]} h6 {[%emt 0:00:09]} 6. Bh4 {[%emt 0:00:02]} Nbd7 {[%emt 0:00:06]} 7. e3 {[%emt 0:00:03]} Be7 {[%emt 0:00:05]} 8. Bd3 {[%emt 0:00:03]} O-O {[%emt 0:00:04]} 9. O-O {[%emt 0:00:04]} dxc4 {[%emt 0:00:21]} 10. Bxc4 {[%emt 0:00:03]} b5 {[%emt 0:00:03]} 11. Bd3 {[%emt 0:00:02]} Bb7 {[%emt 0:00:01]} 12. Rc1 {[%emt 0:00:10]} a6 {[%emt 0:00:06]} 13. a3 {[%emt 0:00:03]} c5 {[%emt 0:00:03]} 14. Bb1 {[%emt 0:00:10]} Rc8 {[%emt 0:02:36]} 15. Qe2 {[%emt 0:02:42]} Qb6 {[%emt 0:00:03]} 16. Ne5 {[%emt 0:00:03]} Rfd8 {[%emt 0:00:03]} 17. Rfd1 {[%emt 0:00:03]} cxd4 {[%emt 0:00:00]} 18. exd4 {[%emt 0:00:00]} Nf8 {[%emt 0:00:00]} 19. h3 {[%emt 0:00:00]} Rxd4 {[%emt 0:00:00]} 20. Bg3 {[%emt 0:00:00]} Rxd1+ {[%emt 0:00:00]} 21. Rxd1 {[%emt 0:00:00]} Rd8 {[%emt 0:00:00]} 22. Rc1 {[%emt 0:00:00]} N8d7 {[%emt 0:00:00]} 23. Nxd7 {[%emt 0:00:00]} Rxd7 {[%emt 0:00:03]} 24. Kh1 {[%emt 0:00:00]} Bd6 {[%emt 0:00:04]} 25. f4 {[%emt 0:00:00]} g6 {[%emt 0:00:05]} 26. Bf2 {[%emt 0:00:00]} Qd8 {[%emt 0:00:03]} 27. Bh4 {[%emt 0:00:00]} Be7 {[%emt 0:00:05]} 28. Bf2 {[%emt 0:00:19]} Rd2 {[%emt 0:00:04]} 29. Qe3 {[%emt 0:00:04]} Rxb2 {[%emt 0:00:06]} 30. Rd1 {[%emt 0:00:02]} Qf8 {[%emt 0:00:03]} 31. Bh4 {[%emt 0:00:06]} Nd5 {[%emt 0:00:12]} 32. Nxd5 {[%emt 0:00:04]} Bxh4 {[%emt 0:00:00]} 33. Bc2 {[%emt 0:00:08]} Rxc2 {[%emt 0:00:00]} 1-0

[Event "Djerba Festival Blitz 2025"]
[Site "Djerba"]
[Date "2025.02.21"]
[Round "9.15"]
[White "Doucet, Pierre-Alois"]
[Black "Nassr, Lina"]
[Result "1-0"]
[Annotator "NA"]
[ECO "B40"]
[WhiteElo "2027"]
[BlackElo "1934"]
[PlyCount "129"]
[EventDate "2025.02.15"]
[EventType "swiss"]
[EventCountry "TUN"]
[SourceTitle "playchess.com"]
[Source "ChessBase"]
[SourceQuality "1"]
[TimeControl "180+3"]

1. e4 {[%emt 0:00:03]} c5 {[%emt 0:00:03]} 2. Nf3 {[%emt 0:00:02]} e6 {[%emt 0:00:02]} 3. c3 {[%emt 0:00:03]} Nf6 {[%emt 0:00:03]} 4. Bd3 {[%emt 0:00:02]} Nc6 {[%emt 0:00:09]} 5. Bc2 {[%emt 0:00:02]} d5 {[%emt 0:00:27]} 6. e5 {[%emt 0:00:03]} Nd7 {[%emt 0:00:02]} 7. d4 {[%emt 0:00:01]} Be7 {[%emt 0:00:13]} 8. O-O {[%emt 0:00:04]} O-O {[%emt 0:00:03]} 9. Re1 {[%emt 0:00:07]} cxd4 {[%emt 0:00:09]} 10. cxd4 {[%emt 0:00:02]} f6 {[%emt 0:00:14]} 11. exf6 {[%emt 0:00:08]} Nxf6 {[%emt 0:00:03]} 12. Nc3 {[%emt 0:00:02]} Bd7 {[%emt 0:00:21]} 13. Bg5 {[%emt 0:00:04]} Nb4 {[%emt 0:01:01]} 14. Bb1 {[%emt 0:00:02]} Rc8 {[%emt 0:00:24]} 15. a3 {[%emt 0:00:03]} Nc6 {[%emt 0:00:02]} 16. Qd3 {[%emt 0:00:11]} g6 {[%emt 0:00:03]} 17. Bh6 {[%emt 0:00:21]} Ng4 {[%emt 0:00:15]} 18. Bxf8 {[%emt 0:00:16]} Qxf8 {[%emt 0:00:23]} 19. h3 {[%emt 0:02:24]} Nf6 {[%emt 0:00:03]} 20. Ne5 {[%emt 0:00:03]} Nxe5 {[%emt 0:00:03]} 21. dxe5 {[%emt 0:00:03]} Nh5 {[%emt 0:00:03]} 22. g3 {[%emt 0:00:03]} Bc5 {[%emt 0:00:03]} 23. Rf1 {[%emt 0:00:03]} Qf7 {[%emt 0:00:03]} 24. Kg2 {[%emt 0:00:03]} Rf8 {[%emt 0:00:03]} 25. f4 Ng7 {[%emt 0:00:03]} 26. b4 {[%emt 0:00:06]} Bb6 {[%emt 0:00:03]} 27. Qe2 {[%emt 0:00:03]} Nf5 {[%emt 0:00:03]} 28. Bxf5 {[%emt 0:00:03]} Qxf5 {[%emt 0:00:03]} 29. Rad1 {[%emt 0:00:03]} Rc8 30. Qd3 {[%emt 0:00:03]} Qxd3 {[%emt 0:00:06]} 31. Rxd3 d4 {[%emt 0:00:03]} 32. Ne4 {[%emt 0:00:06]} Bb5 33. Nf6+ {[%emt 0:00:03]} Kg7 {[%emt 0:00:06]} 34. Rfd1 {[%emt 0:00:03]} Bxd3 {[%emt 0:00:03]} 35. Rxd3 Rc2+ {[%emt 0:00:03]} 36. Kf3 {[%emt 0:00:06]} Rc3 {[%emt 0:00:03]} 37. Ke4 {[%emt 0:00:03]} Rc1 {[%emt 0:00:03]} 38. Nd7 {[%emt 0:00:03]} Re1+ {[%emt 0:00:03]} 39. Kf3 {[%emt 0:00:03]} Rh1 {[%emt 0:00:03]} 40. Nxb6 {[%emt 0:00:03]} axb6 {[%emt 0:00:03]} 41. Rxd4 {[%emt 0:00:03]} Rxh3 {[%emt 0:00:03]} 42. Rd7+ Kg8 {[%emt 0:00:03]} 43. Rxb7 {[%emt 0:00:06]} Rh1 {[%emt 0:00:03]} 44. Rxb6 {[%emt 0:00:03]} Ra1 {[%emt 0:00:03]} 45. Rxe6 {[%emt 0:00:03]} Rxa3+ {[%emt 0:00:03]} 46. Kg4 {[%emt 0:00:03]} Rb3 {[%emt 0:00:03]} 47. Rb6 Kf7 {[%emt 0:00:03]} 48. Rb7+ {[%emt 0:00:06]} Ke6 {[%emt 0:00:03]} 49. b5 {[%emt 0:00:03]} h5+ {[%emt 0:00:03]} 50. Kh4 {[%emt 0:00:03]} Kf5 {[%emt 0:00:03]} 51. Rf7+ {[%emt 0:00:03]} Ke4 {[%emt 0:00:03]} 52. Rf6 {[%emt 0:00:03]} Rxb5 {[%emt 0:00:03]} 53. Rxg6 {[%emt 0:00:03]} Kf5 {[%emt 0:00:03]} 54. Rg5+ {[%emt 0:00:03]} Ke4 {[%emt 0:00:03]} 55. Kxh5 {[%emt 0:00:03]} Rb6 {[%emt 0:00:03]} 56. Kg4 {[%emt 0:00:03]} Rh6 {[%emt 0:00:03]} 57. Rg8 {[%emt 0:00:03]} Rh7 {[%emt 0:00:03]} 58. e6 {[%emt 0:00:03]} Kd5 {[%emt 0:00:03]} 59. f5 {[%emt 0:00:03]} Ke5 {[%emt 0:00:03]} 60. Rg5 {[%emt 0:00:03]} Ra7 {[%emt 0:00:03]} 61. Rg6 {[%emt 0:00:03]} Ra4+ {[%emt 0:00:03]} 62. Kg5 Ra7 {[%emt 0:00:03]} 63. g4 {[%emt 0:00:06]} Re7 {[%emt 0:00:03]} 64. f6 {[%emt 0:00:03]} Rxe6 {[%emt 0:00:03]} 65. f7 1-0

[Event "Djerba Festival Blitz 2025"]
[Site "Djerba"]
[Date "2025.02.21"]
[Round "9.16"]
[White "Chelly, Yahya"]
[Black "Kaabi, Iheb"]
[Result "1-0"]
[Annotator "NA"]
[ECO "D26"]
[WhiteElo "2106"]
[BlackElo "1810"]
[PlyCount "79"]
[EventDate "2025.02.15"]
[EventType "swiss"]
[EventCountry "TUN"]
[SourceTitle "playchess.com"]
[Source "ChessBase"]
[SourceQuality "1"]
[TimeControl "180+3"]

1. Nf3 {[%emt 0:00:04]} Nf6 {[%emt 0:00:02]} 2. d4 {[%emt 0:00:02]} d5 {[%emt 0:00:02]} 3. c4 {[%emt 0:00:02]} dxc4 {[%emt 0:00:02]} 4. e3 {[%emt 0:00:03]} a6 {[%emt 0:00:07]} 5. Bxc4 {[%emt 0:00:03]} b5 {[%emt 0:00:04]} 6. Bd3 {[%emt 0:00:02]} e6 {[%emt 0:00:04]} 7. O-O {[%emt 0:00:05]} Bb7 {[%emt 0:00:02]} 8. a3 {[%emt 0:00:02]} Bd6 {[%emt 0:00:09]} 9. b4 {[%emt 0:00:07]} O-O {[%emt 0:00:03]} 10. Qc2 {[%emt 0:00:05]} Nbd7 {[%emt 0:00:08]} 11. Nc3 {[%emt 0:00:05]} e5 {[%emt 0:00:09]} 12. Ne4 {[%emt 0:00:23]} exd4 {[%emt 0:00:19]} 13. Nxd4 {[%emt 0:00:51]} Nxe4 {[%emt 0:00:34]} 14. Bxe4 {[%emt 0:00:02]} Qh4 {[%emt 0:00:18]} 15. f4 {[%emt 0:01:01]} Bxe4 {[%emt 0:00:14]} 16. Qxe4 {[%emt 0:00:03]} Rfe8 {[%emt 0:00:09]} 17. Qc6 {[%emt 0:00:12]} Nf6 {[%emt 0:00:11]} 18. Nf5 {[%emt 0:00:06]} Qh5 {[%emt 0:00:11]} 19. Nxd6 {[%emt 0:00:27]} cxd6 {[%emt 0:00:02]} 20. h3 {[%emt 0:00:11]} d5 {[%emt 0:00:10]} 21. Bb2 {[%emt 0:00:04]} Ne4 {[%emt 0:00:14]} 22. Rad1 {[%emt 0:00:03]} Rad8 {[%emt 0:00:13]} 23. Be5 {[%emt 0:00:04]} Ng3 {[%emt 0:00:09]} 24. Rf3 {[%emt 0:00:02]} Ne4 {[%emt 0:00:09]} 25. Qxa6 {[%emt 0:00:04]} f6 {[%emt 0:00:09]} 26. Bd4 {[%emt 0:00:01]} Nd6 {[%emt 0:00:09]} 27. Bc5 {[%emt 0:00:05]} Ne4 {[%emt 0:00:04]} 28. Qxb5 {[%emt 0:00:03]} Nc3 {[%emt 0:00:04]} 29. Qd3 {[%emt 0:00:02]} Nxd1 {[%emt 0:00:03]} 30. Qxd1 {[%emt 0:00:02]} Qf5 {[%emt 0:00:06]} 31. a4 {[%emt 0:00:03]} Qe4 {[%emt 0:00:05]} 32. a5 {[%emt 0:00:04]} Qc4 {[%emt 0:00:03]} 33. Rf2 {[%emt 0:00:04]} d4 {[%emt 0:00:06]} 34. exd4 {[%emt 0:00:02]} Re6 {[%emt 0:00:06]} 35. Rc2 {[%emt 0:00:02]} Qb3 {[%emt 0:00:03]} 36. Rd2 {[%emt 0:00:04]} Qc4 {[%emt 0:00:04]} 37. d5 {[%emt 0:00:04]} Re4 {[%emt 0:00:03]} 38. d6 {[%emt 0:00:04]} Rxf4 {[%emt 0:00:03]} 39. d7 {[%emt 0:00:02]} Rf5 {[%emt 0:00:04]} 40. Bb6 {[%emt 0:00:02]} 1-0

[Event "Djerba Festival Blitz 2025"]
[Site "Djerba"]
[Date "2025.02.21"]
[Round "9.19"]
[White "Rene, Benoit"]
[Black "Sazlik, Mucahit"]
[Result "0-1"]
[Annotator "ChessBase"]
[ECO "B40"]
[WhiteElo "2108"]
[BlackElo "1672"]
[PlyCount "53"]
[EventDate "2025.02.15"]
[EventType "swiss"]
[EventCountry "TUN"]
[SourceTitle "playchess.com"]
[Source "ChessBase"]
[SourceQuality "1"]
[TimeControl "180+3"]

1. e4 {[%emt 0:00:05]} e6 {[%emt 0:00:03]} 2. d3 {[%emt 0:00:02]} d5 {[%emt 0:00:05]} 3. Nd2 {[%emt 0:00:02]} c5 {[%emt 0:00:03]} 4. Ngf3 {[%emt 0:00:02]} Nc6 {[%emt 0:00:03]} 5. g3 {[%emt 0:00:03]} Bd6 {[%emt 0:00:15]} 6. Bg2 {[%emt 0:00:02]} d4 {[%emt 0:00:02]} 7. O-O {[%emt 0:00:04]} e5 {[%emt 0:00:02]} 8. a3 {[%emt 0:00:02]} Nf6 {[%emt 0:00:07]} 9. Ne1 {[%emt 0:00:08]} O-O {[%emt 0:02:50]} 10. f4 {[%emt 0:00:03]} Bg4 {[%emt 0:00:00]} 11. Ndf3 {[%emt 0:00:26]} exf4 {[%emt 0:00:00]} 12. gxf4 {[%emt 0:00:03]} Bc7 {[%emt 0:00:00]} 13. Qe2 {[%emt 0:00:14]} Nh5 {[%emt 0:00:00]} 14. h3 {[%emt 0:00:44]} Bd7 {[%emt 0:00:00]} 15. e5 {[%emt 0:00:52]} Ng3 {[%emt 0:00:00]} 16. Qf2 {[%emt 0:00:02]} Nxf1 {[%emt 0:00:00]} 17. Kxf1 {[%emt 0:00:29]} Ne7 {[%emt 0:00:00]} 18. Ng5 {[%emt 0:00:12]} Nf5 {[%emt 0:00:00]} 19. Nef3 {[%emt 0:00:06]} h6 {[%emt 0:00:00]} 20. Ne4 {[%emt 0:00:02]} Bc6 {[%emt 0:00:00]} 21. Nxc5 {[%emt 0:00:06]} Bb6 {[%emt 0:00:00]} 22. b4 {[%emt 0:00:06]} Bxc5 {[%emt 0:00:01]} 23. bxc5 {[%emt 0:00:02]} b6 {[%emt 0:00:12]} 24. cxb6 {[%emt 0:00:05]} Qxb6 {[%emt 0:00:03]} 25. Kg1 {[%emt 0:00:10]} Ne3 {[%emt 0:00:05]} 26. Bxe3 {[%emt 0:00:09]} dxe3 {[%emt 0:00:03]} 27. Qg3 {[%emt 0:00:03]} 0-1

[Event "Djerba Festival Blitz 2025"]
[Site "Djerba"]
[Date "2025.02.21"]
[Round "9.20"]
[White "Chargui, Saleh"]
[Black "Rekik Ismail"]
[Result "0-1"]
[Annotator "NA"]
[ECO "E12"]
[WhiteElo "1709"]
[BlackElo "2006"]
[PlyCount "50"]
[EventDate "2025.02.15"]
[EventType "swiss"]
[EventCountry "TUN"]
[SourceTitle "playchess.com"]
[Source "ChessBase"]
[SourceQuality "1"]
[TimeControl "180+3"]

1. d4 {[%emt 0:00:04]} Nf6 {[%emt 0:00:03]} 2. c4 {[%emt 0:00:02]} e6 {[%emt 0:00:01]} 3. Nc3 {[%emt 0:00:02]} Bb4 {[%emt 0:00:02]} 4. Bg5 {[%emt 0:00:03]} O-O {[%emt 0:00:03]} 5. Nf3 {[%emt 0:00:02]} b6 {[%emt 0:00:03]} 6. e3 {[%emt 0:00:06]} Bb7 {[%emt 0:00:02]} 7. Bd3 {[%emt 0:00:05]} h6 {[%emt 0:00:01]} 8. Bxf6 {[%emt 0:00:05]} Qxf6 {[%emt 0:00:02]} 9. Be2 {[%emt 0:00:03]} c5 {[%emt 0:00:07]} 10. O-O {[%emt 0:00:08]} d6 {[%emt 0:00:05]} 11. a3 {[%emt 0:00:08]} Ba5 {[%emt 0:03:07]} 12. Rc1 {[%emt 0:00:09]} Nc6 {[%emt 0:00:00]} 13. Nb5 {[%emt 0:00:08]} Rfd8 {[%emt 0:00:00]} 14. Re1 {[%emt 0:00:39]} a6 {[%emt 0:00:00]} 15. Nc3 {[%emt 0:00:04]} d5 {[%emt 0:00:00]} 16. cxd5 {[%emt 0:00:05]} exd5 {[%emt 0:00:00]} 17. dxc5 {[%emt 0:00:06]} bxc5 {[%emt 0:00:00]} 18. Qb3 {[%emt 0:00:35]} Rab8 {[%emt 0:00:00]} 19. Red1 {[%emt 0:00:03]} d4 {[%emt 0:00:00]} 20. exd4 {[%emt 0:00:03]} Nxd4 {[%emt 0:00:00]} 21. Nxd4 {[%emt 0:00:09]} cxd4 {[%emt 0:00:00]} 22. Qa4 {[%emt 0:00:29]} dxc3 {[%emt 0:00:00]} 23. Qxa5 {[%emt 0:00:07]} Rxd1+ {[%emt 0:00:00]} 24. Bxd1 {[%emt 0:00:12]} cxb2 {[%emt 0:00:00]} 25. Rb1 {[%emt 0:00:05]} Qg6 {[%emt 0:00:00]} 0-1

[Event "Djerba Festival Blitz 2025"]
[Site "Djerba"]
[Date "2025.02.21"]
[Round "9.21"]
[White "Tahir, Abderrahmane"]
[Black "Zouaghi, Ahmed"]
[Result "0-1"]
[Annotator "NA"]
[ECO "A04"]
[WhiteElo "1891"]
[BlackElo "1919"]
[PlyCount "98"]
[EventDate "2025.02.15"]
[EventType "swiss"]
[EventCountry "TUN"]
[SourceTitle "playchess.com"]
[Source "ChessBase"]
[SourceQuality "1"]
[TimeControl "180+3"]

1. Nf3 {[%emt 0:00:02]} c5 {[%emt 0:00:02]} 2. g3 {[%emt 0:00:02]} g6 {[%emt 0:00:02]} 3. Bg2 {[%emt 0:00:01]} Bg7 {[%emt 0:00:01]} 4. d3 {[%emt 0:00:02]} Nc6 {[%emt 0:00:02]} 5. Nbd2 {[%emt 0:00:01]} d6 {[%emt 0:00:04]} 6. e4 {[%emt 0:00:02]} e5 {[%emt 0:00:02]} 7. a4 {[%emt 0:00:03]} Nge7 {[%emt 0:00:03]} 8. c3 {[%emt 0:00:02]} O-O {[%emt 0:00:04]} 9. O-O {[%emt 0:00:03]} h6 {[%emt 0:00:02]} 10. Nc4 {[%emt 0:00:02]} Be6 {[%emt 0:00:07]} 11. Nfd2 {[%emt 0:00:03]} b6 {[%emt 0:00:19]} 12. Ne3 {[%emt 0:00:02]} d5 {[%emt 0:00:10]} 13. exd5 {[%emt 0:00:05]} Nxd5 {[%emt 0:00:02]} 14. Ndc4 {[%emt 0:00:01]} Nxe3 {[%emt 0:00:08]} 15. Nxe3 {[%emt 0:00:05]} Rc8 {[%emt 0:00:03]} 16. Qc2 {[%emt 0:00:03]} Na5 {[%emt 0:00:14]} 17. c4 {[%emt 0:00:04]} Nc6 {[%emt 0:00:04]} 18. Nd5 {[%emt 0:00:02]} Bxd5 {[%emt 0:00:05]} 19. Bxd5 {[%emt 0:00:06]} Nb4 {[%emt 0:00:01]} 20. Qb3 {[%emt 0:00:12]} Nxd5 {[%emt 0:00:06]} 21. cxd5 {[%emt 0:00:01]} Qd6 {[%emt 0:00:05]} 22. a5 {[%emt 0:00:11]} Rfd8 {[%emt 0:00:11]} 23. axb6 {[%emt 0:00:02]} axb6 {[%emt 0:00:01]} 24. Ra6 {[%emt 0:00:03]} Qxd5 {[%emt 0:00:09]} 25. Qxb6 {[%emt 0:00:04]} Qxd3 {[%emt 0:00:08]} 26. Ra7 {[%emt 0:00:13]} Rd7 {[%emt 0:00:17]} 27. Qa5 {[%emt 0:00:30]} Rxa7 {[%emt 0:00:14]} 28. Qxa7 {[%emt 0:00:02]} e4 {[%emt 0:00:08]} 29. Qb7 {[%emt 0:00:18]} Rd8 {[%emt 0:00:12]} 30. Re1 {[%emt 0:00:11]} c4 {[%emt 0:00:24]} 31. Bf4 {[%emt 0:01:58]} Bxb2 {[%emt 0:00:14]} 32. Qxb2 {[%emt 0:00:00]} c3 {[%emt 0:00:02]} 33. Qc1 {[%emt 0:00:00]} h5 {[%emt 0:00:17]} 34. h4 {[%emt 0:00:00]} c2 {[%emt 0:00:08]} 35. Bg5 {[%emt 0:00:00]} Rb8 {[%emt 0:00:04]} 36. Bf6 {[%emt 0:00:00]} Rb1 {[%emt 0:00:11]} 37. Qh6 {[%emt 0:00:00]} Rxe1+ {[%emt 0:00:02]} 38. Kh2 {[%emt 0:00:00]} Rh1+ {[%emt 0:00:16]} 39. Kxh1 {[%emt 0:00:00]} Qf1+ {[%emt 0:00:09]} 40. Kh2 {[%emt 0:00:00]} Qxf2+ {[%emt 0:00:02]} 41. Kh3 {[%emt 0:00:00]} Qf5+ {[%emt 0:00:03]} 42. Kh2 {[%emt 0:00:00]} Qf2+ {[%emt 0:00:03]} 43. Kh3 {[%emt 0:00:00]} Qxf6 {[%emt 0:00:05]} 44. Qc1 {[%emt 0:00:00]} Qf5+ {[%emt 0:00:03]} 45. Kg2 {[%emt 0:00:00]} Qf3+ {[%emt 0:00:02]} 46. Kh3 {[%emt 0:00:00]} e3 {[%emt 0:00:06]} 47. Qxc2 {[%emt 0:00:00]} Qh1+ {[%emt 0:00:02]} 48. Qh2 {[%emt 0:00:00]} Qxh2+ {[%emt 0:00:02]} 49. Kxh2 {[%emt 0:00:00]} e2 {[%emt 0:00:01]} 0-1

[Event "Djerba Festival Blitz 2025"]
[Site "Djerba"]
[Date "2025.02.21"]
[Round "9.23"]
[White "Boudnani, Brahim"]
[Black "Mendili, Jahed"]
[Result "0-1"]
[Annotator "NA"]
[ECO "D00"]
[WhiteElo "1721"]
[BlackElo "1771"]
[PlyCount "58"]
[EventDate "2025.02.15"]
[EventType "swiss"]
[EventCountry "TUN"]
[SourceTitle "playchess.com"]
[Source "ChessBase"]
[SourceQuality "1"]
[TimeControl "180+3"]

1. d4 {[%emt 0:00:04]} Nf6 {[%emt 0:00:06]} 2. Bf4 {[%emt 0:00:01]} e6 {[%emt 0:00:04]} 3. Nf3 {[%emt 0:00:03]} d5 {[%emt 0:03:02]} 4. Nc3 {[%emt 0:00:03]} Nbd7 {[%emt 0:00:00]} 5. Nb5 {[%emt 0:00:03]} e5 {[%emt 0:00:00]} 6. dxe5 {[%emt 0:00:12]} c6 {[%emt 0:00:00]} 7. exf6 {[%emt 0:00:10]} cxb5 {[%emt 0:00:00]} 8. fxg7 {[%emt 0:00:07]} Bxg7 {[%emt 0:00:00]} 9. c3 {[%emt 0:00:06]} Nb6 {[%emt 0:00:00]} 10. e3 {[%emt 0:00:06]} Bd7 {[%emt 0:00:00]} 11. Qc2 {[%emt 0:00:06]} Rc8 {[%emt 0:00:00]} 12. Be2 {[%emt 0:00:09]} b4 {[%emt 0:00:00]} 13. Ne5 {[%emt 0:00:08]} Be6 {[%emt 0:00:00]} 14. Bb5+ {[%emt 0:00:07]} Nd7 {[%emt 0:00:00]} 15. Nxd7 {[%emt 0:00:07]} Bxd7 {[%emt 0:00:00]} 16. Bxd7+ {[%emt 0:00:07]} Qxd7 {[%emt 0:00:00]} 17. Rd1 {[%emt 0:00:06]} bxc3 {[%emt 0:00:00]} 18. O-O {[%emt 0:00:31]} cxb2 {[%emt 0:00:00]} 19. e4 {[%emt 0:00:11]} Rxc2 {[%emt 0:00:00]} 20. Rxd5 {[%emt 0:00:03]} Qxd5 {[%emt 0:00:00]} 21. exd5 {[%emt 0:00:03]} O-O {[%emt 0:00:00]} 22. h4 {[%emt 0:00:09]} Rfc8 {[%emt 0:00:00]} 23. Re1 {[%emt 0:00:11]} Rc1 {[%emt 0:00:00]} 24. Bxc1 {[%emt 0:00:03]} Rxc1 {[%emt 0:00:00]} 25. Rxc1 {[%emt 0:00:03]} bxc1=Q+ {[%emt 0:00:00]} 26. Kh2 {[%emt 0:00:03]} Be5+ {[%emt 0:00:00]} 27. g3 {[%emt 0:00:02]} Qf1 {[%emt 0:00:00]} 28. d6 {[%emt 0:00:03]} Qxf2+ {[%emt 0:00:00]} 29. Kh3 {[%emt 0:00:01]} Qxg3# {[%emt 0:00:00]} 0-1

[Event "Djerba Festival Blitz 2025"]
[Site "Djerba"]
[Date "2025.02.21"]
[Round "9.24"]
[White "Azreug, Lazhar"]
[Black "Zerarga, Imene"]
[Result "0-1"]
[Annotator "NA"]
[ECO "B23"]
[WhiteElo "1793"]
[BlackElo "1831"]
[PlyCount "64"]
[EventDate "2025.02.15"]
[EventType "swiss"]
[EventCountry "TUN"]
[SourceTitle "playchess.com"]
[Source "ChessBase"]
[SourceQuality "1"]
[TimeControl "180+3"]

1. e4 {[%emt 0:00:02]} c5 {[%emt 0:00:02]} 2. Nc3 {[%emt 0:00:02]} d6 {[%emt 0:00:02]} 3. f4 {[%emt 0:00:04]} g6 {[%emt 0:00:03]} 4. Nf3 {[%emt 0:00:04]} Bg7 {[%emt 0:00:02]} 5. Bc4 {[%emt 0:00:07]} Nc6 {[%emt 0:00:02]} 6. O-O {[%emt 0:00:11]} Nf6 {[%emt 0:00:03]} 7. d3 {[%emt 0:00:02]} O-O {[%emt 0:00:03]} 8. Qe1 {[%emt 0:00:04]} a6 {[%emt 0:00:05]} 9. a4 {[%emt 0:00:21]} Rb8 {[%emt 0:00:05]} 10. Qh4 {[%emt 0:00:06]} b5 {[%emt 0:00:10]} 11. axb5 {[%emt 0:00:03]} axb5 {[%emt 0:00:02]} 12. Bxb5 {[%emt 0:00:07]} Nd4 {[%emt 0:00:11]} 13. Ba4 {[%emt 0:00:17]} Ra8 {[%emt 0:00:23]} 14. Be3 {[%emt 0:00:10]} Nxf3+ {[%emt 0:00:04]} 15. Rxf3 {[%emt 0:00:13]} Qb6 {[%emt 0:00:09]} 16. b3 {[%emt 0:00:38]} Nxe4 {[%emt 0:00:32]} 17. Nd5 {[%emt 0:00:06]} Qb7 {[%emt 0:00:11]} 18. Nxe7+ {[%emt 0:00:14]} Kh8 {[%emt 0:00:04]} 19. Raf1 {[%emt 0:00:13]} Bf6 {[%emt 0:00:10]} 20. Bc6 {[%emt 0:00:17]} Qxe7 {[%emt 0:01:40]} 21. Qe1 {[%emt 0:00:14]} Bb7 {[%emt 0:00:00]} 22. Bxe4 {[%emt 0:00:06]} Bxe4 {[%emt 0:00:00]} 23. dxe4 {[%emt 0:00:06]} Qxe4 {[%emt 0:00:00]} 24. Rh3 {[%emt 0:00:19]} Qxc2 {[%emt 0:00:00]} 25. Qg3 {[%emt 0:00:06]} Qe4 {[%emt 0:00:00]} 26. Re1 {[%emt 0:00:04]} Ra1 {[%emt 0:00:00]} 27. Rxa1 {[%emt 0:00:03]} Bxa1 {[%emt 0:00:00]} 28. Qh4 {[%emt 0:00:03]} h5 {[%emt 0:00:00]} 29. Qg5 {[%emt 0:00:03]} Bg7 {[%emt 0:00:00]} 30. Kf2 {[%emt 0:00:05]} Ra8 {[%emt 0:00:00]} 31. Rh4 {[%emt 0:00:03]} Ra2+ {[%emt 0:00:00]} 32. Ke1 {[%emt 0:00:06]} Bf8 {[%emt 0:00:36]} 0-1